[Event "World Senior chT-65 2019"]
[Site "Rhodes"]
[Date "2019.04.18"]
[Round "3.27"]
[White "Van Herck, Marcel"]
[Black "Baumbach, Friedrich"]
[Result "1/2-1/2"]
[ECO "D37"]
[WhiteElo "2066"]
[BlackElo "2089"]
[PlyCount "107"]
[EventDate "2019.04.16"]
[EventType "team-tourn"]
[EventCountry "GRE"]
[TimeControl "40/5400+30:1800+30"]

1. d4 {[%emt 0:00:27]} d5 {[%emt 0:00:00]} 2. c4 {[%emt 0:00:08]} e6 {[%emt 0:00:00]} 3. Nc3 {[%emt 0:00:13]} Nf6 {[%emt 0:00:00]} 4. Nf3 {[%emt 0:02:03]} Be7 {[%emt 0:00:12]} 5. Bf4 {[%emt 0:04:50]} O-O {[%emt 0:01:05]} 6. e3 {[%emt 0:00:09]} c5 {[%emt 0:04:57]} 7. dxc5 {[%emt 0:01:23]} Qa5 {[%emt 0:01:12]} 8. Nd2 {[%emt 0:03:16]} dxc4 {[%emt 0:07:27]} 9. Nxc4 {[%emt 0:00:33]} Qxc5 {[%emt 0:00:59]} 10. Bd6 {[%emt 0:00:28]} Bxd6 {[%emt 0:01:54]} 11. Qxd6 {[%emt 0:00:07]} Na6 {[%emt 0:03:43]} 12. Be2 {[%emt 0:04:30]} Bd7 {[%emt 0:04:19]} 13. Qxc5 {[%emt 0:05:49]} Nxc5 {[%emt 0:00:05]} 14. Ne5 {[%emt 0:00:40]} Rfd8 {[%emt 0:04:37]} 15. O-O {[%emt 0:01:33]} Be8 {[%emt 0:03:51]} 16. Rfd1 {[%emt 0:00:26]} Kf8 {[%emt 0:01:54]} 17. Bf3 {[%emt 0:06:03]} a5 {[%emt 0:08:38]} 18. Rd4 {[%emt 0:12:25]} Rab8 {[%emt 0:15:19]} 19. Rad1 {[%emt 0:04:23]} Ke7 {[%emt 0:01:04]} 20. Rxd8 {[%emt 0:06:52]} Rxd8 {[%emt 0:00:02]} 21. Rxd8 {[%emt 0:00:08]} Kxd8 {[%emt 0:00:02]} 22. Nc4 {[%emt 0:00:39]} a4 {[%emt 0:02:55]} 23. Nd6 {[%emt 0:01:10]} Kc7 {[%emt 0:03:46]} 24. Nxe8+ {[%emt 0:00:36]} Nxe8 {[%emt 0:00:04]} 25. Bd1 {[%emt 0:00:23]} a3 {[%emt 0:02:16]} 26. Nb5+ {[%emt 0:01:52]} Kc6 {[%emt 0:01:45]} 27. Nxa3 {[%emt 0:00:07]} b5 {[%emt 0:00:37]} 28. Kf1 {[%emt 0:12:41]} Nd6 {[%emt 0:01:04]} 29. Ke2 {[%emt 0:06:04]} e5 {[%emt 0:04:41]} 30. f3 {[%emt 0:09:48]} b4 {[%emt 0:07:32]} 31. Nb1 {[%emt 0:05:04]} e4 {[%emt 0:06:05]} 32. Bc2 {[%emt 0:02:48]} f5 {[%emt 0:00:36]} 33. Nd2 {[%emt 0:00:27]} Kd5 {[%emt 0:01:16]} 34. a3 {[%emt 0:01:00]} bxa3 {[%emt 0:00:49]} 35. bxa3 {[%emt 0:00:10]} Nb5 {[%emt 0:01:32]} 36. Nb1 {[%emt 0:03:19]} Kc4 {[%emt 0:04:21]} 37. Kd2 {[%emt 0:00:17]} Nd6 {[%emt 0:04:32]} 38. Nc3 {[%emt 0:01:37]} Nb3+ {[%emt 0:01:00]} 39. Bxb3+ {[%emt 0:00:06]} Kxb3 {[%emt 0:00:04]} 40. Nd5 {[%emt 0:00:00]} Nc4+ {[%emt 0:00:00]} 41. Ke2 {[%emt 0:01:54]} Nxa3 {[%emt 0:11:19]} 42. Ne7 {[%emt 0:00:59]} g6 {[%emt 0:00:20]} 43. Ng8 {[%emt 0:10:05]} Nb5 {[%emt 0:04:04]} 44. Nf6 {[%emt 0:01:46]} Nc3+ {[%emt 0:04:50]} 45. Kd2 {[%emt 0:00:33]} h6 {[%emt 0:01:08]} 46. Ng8 {[%emt 0:00:43]} Nb1+ {[%emt 0:02:28]} 47. Ke1 {[%emt 0:01:22]} Kc2 {[%emt 0:01:20]} 48. fxe4 {[%emt 0:04:29]} fxe4 {[%emt 0:00:11]} 49. Nxh6 {[%emt 0:00:59]} Kd3 {[%emt 0:01:51]} 50. Ng4 {[%emt 0:00:08]} g5 {[%emt 0:04:07]} 51. g3 {[%emt 0:05:08]} Kc4 {[%emt 0:02:36]} 52. Nf6 {[%emt 0:02:07]} Kd3 {[%emt 0:01:03]} 53. Kf2 {[%emt 0:03:39]} Nc3 {[%emt 0:00:25]} 54. Ng4 {[%emt 0:02:39]} 1/2-1/2

[Event "World Senior chT-65 2019"]
[Site "Rhodes"]
[Date "2019.04.18"]
[Round "3.28"]
[White "Just, Joachim"]
[Black "Schrickx, Frank"]
[Result "1/2-1/2"]
[ECO "A03"]
[WhiteElo "1970"]
[BlackElo "1823"]
[PlyCount "114"]
[EventDate "2019.04.16"]
[EventType "team-tourn"]
[EventCountry "GRE"]
[TimeControl "40/5400+30:1800+30"]

1. f4 {[%emt 0:00:00]} d5 {[%emt 0:00:00]} 2. e3 {[%emt 0:00:00]} Nf6 {[%emt 0:00:24]} 3. Nf3 {[%emt 0:00:12]} Bg4 {[%emt 0:02:11]} 4. Be2 {[%emt 0:00:55]} e6 {[%emt 0:01:09]} 5. b3 {[%emt 0:00:21]} Nbd7 {[%emt 0:02:38]} 6. Bb2 {[%emt 0:00:18]} Bd6 {[%emt 0:04:19]} 7. O-O {[%emt 0:01:06]} c6 {[%emt 0:01:44]} 8. Qe1 {[%emt 0:02:06]} Qc7 {[%emt 0:03:38]} 9. d4 {[%emt 0:01:29]} Ne4 {[%emt 0:04:34]} 10. Nbd2 {[%emt 0:03:21]} Bb4 {[%emt 0:09:37]} 11. Qd1 {[%emt 0:02:03]} Ndf6 {[%emt 0:07:39]} 12. Nxe4 {[%emt 0:01:49]} Nxe4 {[%emt 0:02:34]} 13. Ne5 {[%emt 0:02:58]} Bxe2 {[%emt 0:01:45]} 14. Qxe2 {[%emt 0:00:11]} g6 {[%emt 0:07:25]} 15. c4 {[%emt 0:01:58]} Bd6 {[%emt 0:02:29]} 16. Nd3 {[%emt 0:03:11]} f5 {[%emt 0:02:52]} 17. c5 {[%emt 0:01:07]} Bf8 {[%emt 0:04:10]} 18. b4 {[%emt 0:00:39]} Bg7 {[%emt 0:01:02]} 19. a4 {[%emt 0:00:21]} O-O {[%emt 0:01:39]} 20. Nf2 {[%emt 0:01:20]} Nf6 {[%emt 0:04:45]} 21. Bc3 {[%emt 0:04:02]} Rfc8 {[%emt 0:04:40]} 22. Rfb1 {[%emt 0:01:08]} Nd7 {[%emt 0:01:30]} 23. Nd3 {[%emt 0:01:03]} b6 {[%emt 0:01:32]} 24. Be1 {[%emt 0:01:25]} bxc5 {[%emt 0:01:06]} 25. bxc5 {[%emt 0:00:58]} a5 {[%emt 0:05:45]} 26. Bh4 {[%emt 0:02:07]} Rcb8 {[%emt 0:01:35]} 27. Qc2 {[%emt 0:00:44]} Rxb1+ {[%emt 0:02:01]} 28. Rxb1 {[%emt 0:00:15]} Rb8 {[%emt 0:01:35]} 29. Rb3 {[%emt 0:01:42]} Bf6 {[%emt 0:01:35]} 30. Be1 {[%emt 0:01:47]} Bd8 {[%emt 0:01:54]} 31. Qb1 {[%emt 0:01:45]} Rxb3 {[%emt 0:01:31]} 32. Qxb3 {[%emt 0:00:09]} Kf7 {[%emt 0:02:18]} 33. Kf1 {[%emt 0:02:34]} Qa7 {[%emt 0:01:58]} 34. Ke2 {[%emt 0:04:58]} Ke8 {[%emt 0:01:01]} 35. Kf3 {[%emt 0:01:10]} Qa6 {[%emt 0:02:23]} 36. h3 {[%emt 0:05:46]} Bc7 {[%emt 0:01:01]} 37. Bh4 {[%emt 0:01:29]} h5 {[%emt 0:01:42]} 38. g4 {[%emt 0:02:12]} hxg4+ {[%emt 0:00:33]} 39. hxg4 {[%emt 0:00:12]} fxg4+ {[%emt 0:00:54]} 40. Kxg4 {[%emt 0:00:00]} Kf7 {[%emt 0:00:00]} 41. Bg5 {[%emt 0:01:16]} Nf6+ {[%emt 0:02:32]} 42. Bxf6 {[%emt 0:00:26]} Kxf6 {[%emt 0:00:03]} 43. Kf3 {[%emt 0:02:41]} Qa8 {[%emt 0:00:48]} 44. Nf2 {[%emt 0:01:57]} Kf7 {[%emt 0:04:32]} 45. Qb1 {[%emt 0:01:25]} Qh8 {[%emt 0:01:00]} 46. Qh1 {[%emt 0:00:16]} Qxh1+ {[%emt 0:02:42]} 47. Nxh1 {[%emt 0:00:05]} Kf6 {[%emt 0:00:40]} 48. Kg4 {[%emt 0:00:31]} Bd8 {[%emt 0:00:24]} 49. Nf2 {[%emt 0:00:22]} Kf7 {[%emt 0:00:17]} 50. Nd3 {[%emt 0:00:19]} Bc7 {[%emt 0:00:11]} 51. Ne1 {[%emt 0:00:31]} Bd8 {[%emt 0:01:15]} 52. Nf3 {[%emt 0:00:14]} Bf6 {[%emt 0:00:50]} 53. Kg3 {[%emt 0:02:19]} Kg7 {[%emt 0:00:56]} 54. Kg4 {[%emt 0:02:12]} Kf7 {[%emt 0:00:38]} 55. Ne5+ {[%emt 0:05:56]} Bxe5 {[%emt 0:00:20]} 56. dxe5 {[%emt 0:00:08]} Kg8 {[%emt 0:00:22]} 57. Kg5 {[%emt 0:01:14]} Kg7 {[%emt 0:00:02]} 1/2-1/2

[Event "World Senior chT-65 2019"]
[Site "Rhodes"]
[Date "2019.04.18"]
[Round "3.29"]
[White "Scrimgour, Alan"]
[Black "Opl, Klaus"]
[Result "1/2-1/2"]
[ECO "C33"]
[WhiteElo "2087"]
[BlackElo "2188"]
[PlyCount "46"]
[EventDate "2019.04.16"]
[EventType "team-tourn"]
[EventCountry "GRE"]
[TimeControl "40/5400+30:1800+30"]

1. e4 {[%emt 0:00:00]} e5 {[%emt 0:00:00]} 2. f4 {[%emt 0:00:00]} exf4 {[%emt 0:00:00]} 3. Bc4 {[%emt 0:00:00]} Nc6 {[%emt 0:00:14]} 4. d4 {[%emt 0:00:13]} g5 {[%emt 0:00:30]} 5. Ne2 {[%emt 0:20:06]} Bg7 {[%emt 0:08:06]} 6. O-O {[%emt 0:03:30]} d6 {[%emt 0:04:08]} 7. c3 {[%emt 0:13:39]} Nf6 {[%emt 0:04:53]} 8. Nd2 {[%emt 0:16:06]} O-O {[%emt 0:03:28]} 9. g3 {[%emt 0:03:33]} Bh3 {[%emt 0:01:50]} 10. gxf4 {[%emt 0:03:00]} Bxf1 {[%emt 0:01:04]} 11. Qxf1 {[%emt 0:00:46]} d5 {[%emt 0:02:35]} 12. fxg5 {[%emt 0:09:21]} dxc4 {[%emt 0:04:07]} 13. gxf6 {[%emt 0:00:07]} Qxf6 {[%emt 0:00:14]} 14. Qxf6 {[%emt 0:00:58]} Bxf6 {[%emt 0:00:02]} 15. Nxc4 {[%emt 0:01:44]} Kh8 {[%emt 0:00:28]} 16. Bf4 {[%emt 0:01:12]} Rg8+ {[%emt 0:00:32]} 17. Kf2 {[%emt 0:00:25]} Rae8 {[%emt 0:04:32]} 18. Kf3 {[%emt 0:01:18]} Rg6 {[%emt 0:04:39]} 19. Ne3 {[%emt 0:01:25]} Bg5 {[%emt 0:04:52]} 20. Bxc7 {[%emt 0:01:39]} Bxe3 {[%emt 0:06:25]} 21. Kxe3 {[%emt 0:00:07]} f5 {[%emt 0:00:08]} 22. Ng3 {[%emt 0:06:16]} fxe4 {[%emt 0:02:22]} 23. Rf1 {[%emt 0:01:43]} Rg7 {[%emt 0:11:44] Kxe4 [%clk 00:06:01] [%emt 00:01:01]} 1/2-1/2

[Event "World Senior chT-65 2019"]
[Site "Rhodes"]
[Date "2019.04.18"]
[Round "3.30"]
[White "Woeber, Friedrich"]
[Black "White, Alastair F"]
[Result "1-0"]
[ECO "B09"]
[WhiteElo "2114"]
[BlackElo "2108"]
[PlyCount "52"]
[EventDate "2019.04.16"]
[EventType "team-tourn"]
[EventCountry "GRE"]
[TimeControl "40/5400+30:1800+30"]

1. e4 {[%emt 0:00:03]} d6 {[%emt 0:00:00]} 2. d4 {[%emt 0:00:12]} Nf6 {[%emt 0:00:04]} 3. Nc3 {[%emt 0:00:14]} g6 {[%emt 0:00:26]} 4. f4 {[%emt 0:00:20]} Bg7 {[%emt 0:00:23]} 5. Nf3 {[%emt 0:00:09]} O-O {[%emt 0:00:18]} 6. Bd3 {[%emt 0:00:41]} Nc6 {[%emt 0:00:21]} 7. O-O {[%emt 0:01:04]} e5 {[%emt 0:00:35]} 8. fxe5 {[%emt 0:01:43]} dxe5 {[%emt 0:00:11]} 9. d5 {[%emt 0:00:33]} Ne7 {[%emt 0:00:23]} 10. Nxe5 {[%emt 0:11:35]} c6 {[%emt 0:01:01]} 11. Bg5 {[%emt 0:02:17]} cxd5 {[%emt 0:02:09]} 12. exd5 {[%emt 0:03:06]} Qb6+ {[%emt 0:01:42]} 13. Kh1 {[%emt 0:00:53]} Nfxd5 {[%emt 0:07:58]} 14. Nxd5 {[%emt 0:11:25]} Nxd5 {[%emt 0:00:03]} 15. Nxf7 {[%emt 0:00:30]} Be6 {[%emt 0:15:44]} 16. Nh6+ {[%emt 0:00:18]} Kh8 {[%emt 0:00:22]} 17. Qe2 {[%emt 0:05:55]} Rae8 {[%emt 0:08:04]} 18. Rxf8+ {[%emt 0:07:47]} Rxf8 {[%emt 0:03:38]} 19. Re1 {[%emt 0:05:31]} Nb4 {[%emt 0:18:34]} 20. Bc4 {[%emt 0:04:52]} Bxc4 {[%emt 0:02:12]} 21. Qxc4 {[%emt 0:00:06]} Qf2 {[%emt 0:00:49]} 22. Rd1 {[%emt 0:03:14]} Nxc2 {[%emt 0:04:08]} 23. h3 {[%emt 0:08:00]} Ne1 {[%emt 0:01:07]} 24. Qd5 {[%emt 0:03:30]} Qf1+ {[%emt 0:00:22]} 25. Kh2 {[%emt 0:00:08]} Bf6 {[%emt 0:07:17]} 26. Rxe1 {[%emt 0:01:12]} Bg7 {[%emt 0:02:55]} 1-0

[Event "World Senior chT-65 2019"]
[Site "Rhodes"]
[Date "2019.04.18"]
[Round "3.31"]
[White "Bhopal, Raj"]
[Black "Strobel, Ferdinand"]
[Result "1/2-1/2"]
[ECO "B08"]
[WhiteElo "1900"]
[BlackElo "1974"]
[PlyCount "55"]
[EventDate "2019.04.16"]
[EventType "team-tourn"]
[EventCountry "GRE"]
[TimeControl "40/5400+30:1800+30"]

1. e4 {[%emt 0:00:00]} d6 {[%emt 0:00:00]} 2. d4 {[%emt 0:00:00]} Nf6 {[%emt 0:00:00]} 3. Nc3 {[%emt 0:00:00]} g6 {[%emt 0:00:11]} 4. Nf3 {[%emt 0:00:01]} Bg7 {[%emt 0:00:13]} 5. Be2 {[%emt 0:00:11]} O-O {[%emt 0:01:24]} 6. O-O {[%emt 0:00:08]} c6 {[%emt 0:07:17]} 7. h3 {[%emt 0:01:50]} b5 {[%emt 0:04:23]} 8. a3 {[%emt 0:04:25]} a6 {[%emt 0:07:41]} 9. Be3 {[%emt 0:01:53]} Nbd7 {[%emt 0:02:31]} 10. Qd2 {[%emt 0:05:42]} Bb7 {[%emt 0:04:37]} 11. e5 {[%emt 0:07:32]} Ne8 {[%emt 0:05:36]} 12. Bh6 {[%emt 0:09:42]} Nc7 {[%emt 0:14:38]} 13. exd6 {[%emt 0:02:38]} exd6 {[%emt 0:00:07]} 14. Bg5 {[%emt 0:04:16]} Nf6 {[%emt 0:04:46]} 15. Rad1 {[%emt 0:04:17]} Ne6 {[%emt 0:04:04]} 16. Bh4 {[%emt 0:02:12]} Qc7 {[%emt 0:03:49]} 17. Bg3 {[%emt 0:02:46]} a5 {[%emt 0:03:34]} 18. b4 {[%emt 0:05:56]} axb4 {[%emt 0:02:57]} 19. axb4 {[%emt 0:00:00]} Qd7 {[%emt 0:04:29]} 20. Rfe1 {[%emt 0:01:58]} Nc7 {[%emt 0:01:18]} 21. Ng5 {[%emt 0:05:22]} d5 {[%emt 0:03:56]} 22. Nf3 {[%emt 0:03:46]} Ne4 {[%emt 0:01:37]} 23. Nxe4 {[%emt 0:01:22]} dxe4 {[%emt 0:00:13]} 24. Ne5 {[%emt 0:01:10]} Qe7 {[%emt 0:02:50]} 25. Bf1 {[%emt 0:07:13]} Nd5 {[%emt 0:04:20]} 26. c3 {[%emt 0:07:05]} Ra3 {[%emt 0:06:40]} 27. Rc1 {[%emt 0:00:46]} f5 {[%emt 0:00:19]} 28. Nd3 {[%emt 0:02:54]} 1/2-1/2

[Event "World Senior chT-65 2019"]
[Site "Rhodes"]
[Date "2019.04.18"]
[Round "3.32"]
[White "Danner, Lambert"]
[Black "Dawson, Alastair"]
[Result "1-0"]
[ECO "A39"]
[WhiteElo "2013"]
[BlackElo "1817"]
[PlyCount "73"]
[EventDate "2019.04.16"]
[EventType "team-tourn"]
[EventCountry "GRE"]
[TimeControl "40/5400+30:1800+30"]

1. g3 {[%emt 0:00:00]} g6 {[%emt 0:00:00]} 2. c4 {[%emt 0:00:00]} c5 {[%emt 0:00:02]} 3. Nc3 {[%emt 0:00:00]} Nc6 {[%emt 0:00:11]} 4. Bg2 {[%emt 0:00:05]} Bg7 {[%emt 0:00:17]} 5. Nf3 {[%emt 0:00:06]} Nf6 {[%emt 0:00:09]} 6. O-O {[%emt 0:00:31]} O-O {[%emt 0:00:08]} 7. d4 {[%emt 0:00:38]} cxd4 {[%emt 0:00:31]} 8. Nxd4 {[%emt 0:00:07]} Nxd4 {[%emt 0:00:44]} 9. Qxd4 {[%emt 0:00:06]} d6 {[%emt 0:00:31]} 10. Qd2 {[%emt 0:01:11]} Rb8 {[%emt 0:05:51]} 11. Rd1 {[%emt 0:02:12]} b6 {[%emt 0:02:33]} 12. b3 {[%emt 0:03:53]} Nd7 {[%emt 0:02:02]} 13. Bb2 {[%emt 0:00:21]} Bb7 {[%emt 0:02:49]} 14. e4 {[%emt 0:00:37]} Nc5 {[%emt 0:06:01]} 15. Re1 {[%emt 0:01:32]} Qd7 {[%emt 0:04:40]} 16. Rad1 {[%emt 0:00:53]} a5 {[%emt 0:07:02]} 17. h3 {[%emt 0:08:02]} Bc6 {[%emt 0:04:30]} 18. Re2 {[%emt 0:01:56]} Qb7 {[%emt 0:02:21]} 19. Nd5 {[%emt 0:03:38]} Bxb2 {[%emt 0:00:35]} 20. Qxb2 {[%emt 0:00:07]} Bxd5 {[%emt 0:04:43]} 21. Rxd5 {[%emt 0:00:31]} Qc7 {[%emt 0:07:13]} 22. Qc1 {[%emt 0:05:54]} Nd7 {[%emt 0:07:58]} 23. Qd2 {[%emt 0:02:26]} a4 {[%emt 0:01:32]} 24. Kh2 {[%emt 0:00:46]} axb3 {[%emt 0:00:10]} 25. axb3 {[%emt 0:00:07]} Nc5 {[%emt 0:00:29]} 26. Qb2 {[%emt 0:01:26]} b5 {[%emt 0:00:39]} 27. Qc3 {[%emt 0:02:36]} bxc4 {[%emt 0:02:28]} 28. bxc4 {[%emt 0:01:32]} Rfc8 {[%emt 0:02:35]} 29. e5 {[%emt 0:01:24]} dxe5 {[%emt 0:02:19]} 30. Rexe5 {[%emt 0:02:22]} Qa7 {[%emt 0:07:10]} 31. Qe3 {[%emt 0:00:55]} Rb3 {[%emt 0:02:46]} 32. Rxc5 {[%emt 0:04:06]} Rxe3 {[%emt 0:00:36]} 33. Rxc8+ {[%emt 0:00:08]} Kg7 {[%emt 0:00:03]} 34. Rxe3 {[%emt 0:00:13]} e6 {[%emt 0:00:28]} 35. c5 {[%emt 0:01:35]} Qd7 {[%emt 0:00:19]} 36. Rb8 {[%emt 0:01:05]} Qc7 {[%emt 0:00:21]} 37. Rb5 {[%emt 0:00:16]} 1-0

[Event "World Senior chT-65 2019"]
[Site "Rhodes"]
[Date "2019.04.18"]
[Round "3.33"]
[White "Vucenovic, Dragomir"]
[Black "Andersson, Kaj"]
[Result "1-0"]
[ECO "E01"]
[WhiteElo "2168"]
[BlackElo "2030"]
[PlyCount "108"]
[EventDate "2019.04.16"]
[EventType "team-tourn"]
[EventCountry "GRE"]
[TimeControl "40/5400+30:1800+30"]

1. d4 {[%emt 0:00:00]} d5 {[%emt 0:00:00]} 2. Nf3 {[%emt 0:00:00]} Nf6 {[%emt 0:00:00]} 3. g3 {[%emt 0:00:00]} e6 {[%emt 0:01:21]} 4. Bg2 {[%emt 0:00:02]} Bd6 {[%emt 0:00:33]} 5. O-O {[%emt 0:00:27]} O-O {[%emt 0:00:06]} 6. b3 {[%emt 0:01:04]} c6 {[%emt 0:01:05]} 7. Bb2 {[%emt 0:00:51]} Nbd7 {[%emt 0:00:52]} 8. Nbd2 {[%emt 0:02:01]} Qc7 {[%emt 0:03:17]} 9. c4 {[%emt 0:00:40]} Re8 {[%emt 0:00:49]} 10. Rc1 {[%emt 0:01:35]} b6 {[%emt 0:07:53]} 11. Qc2 {[%emt 0:01:57]} Ba6 {[%emt 0:01:45]} 12. cxd5 {[%emt 0:06:34]} exd5 {[%emt 0:01:15]} 13. Qxc6 {[%emt 0:02:40]} Qxc6 {[%emt 0:03:53]} 14. Rxc6 {[%emt 0:00:07]} Bb4 {[%emt 0:00:31]} 15. a3 {[%emt 0:30:58]} Bxd2 {[%emt 0:05:56]} 16. Nxd2 {[%emt 0:00:07]} Rxe2 {[%emt 0:02:37]} 17. Rd1 {[%emt 0:00:13]} Rae8 {[%emt 0:09:27]} 18. Rcc1 {[%emt 0:01:23]} R2e7 {[%emt 0:07:09]} 19. a4 {[%emt 0:01:53]} Nf8 {[%emt 0:01:24]} 20. Ba3 {[%emt 0:00:52]} Rd7 {[%emt 0:00:54]} 21. Nf3 {[%emt 0:01:31]} Ng6 {[%emt 0:05:55]} 22. h4 {[%emt 0:09:10]} h5 {[%emt 0:03:24]} 23. Re1 {[%emt 0:00:56]} Rxe1+ {[%emt 0:05:38]} 24. Rxe1 {[%emt 0:00:22]} Bd3 {[%emt 0:04:30]} 25. Ne5 {[%emt 0:10:35]} Nxe5 {[%emt 0:02:09]} 26. dxe5 {[%emt 0:02:20]} Ng4 {[%emt 0:05:48]} 27. Bd6 {[%emt 0:11:22]} d4 {[%emt 0:14:38]} 28. Rd1 {[%emt 0:03:24]} Bc2 {[%emt 0:00:28]} 29. Rxd4 {[%emt 0:00:40]} Bxb3 {[%emt 0:00:11]} 30. f3 {[%emt 0:02:06]} Nh6 {[%emt 0:00:49]} 31. f4 {[%emt 0:01:43]} Nf5 {[%emt 0:00:51]} 32. Bh3 {[%emt 0:04:53]} Nxd4 {[%emt 0:01:11]} 33. Bxd7 {[%emt 0:00:04]} Ne2+ {[%emt 0:00:32]} 34. Kf2 {[%emt 0:00:49]} Nc3 {[%emt 0:00:03]} 35. Bb8 {[%emt 0:02:54]} a5 {[%emt 0:01:39]} 36. f5 {[%emt 0:00:10]} Bc2 {[%emt 0:07:10]} 37. e6 {[%emt 0:00:45]} Bxf5 {[%emt 0:00:25]} 38. exf7+ {[%emt 0:00:13]} Kxf7 {[%emt 0:00:02]} 39. Bxf5 {[%emt 0:00:22]} Nxa4 {[%emt 0:00:05]} 40. Bc7 {[%emt 0:00:00]} Kf6 {[%emt 0:00:00]} 41. Bc2 {[%emt 0:02:54]} Nb2 {[%emt 0:02:56]} 42. Bxb6 {[%emt 0:00:25]} Nc4 {[%emt 0:00:06]} 43. Bd4+ {[%emt 0:00:26]} Ne5 {[%emt 0:00:36]} 44. Bc3 {[%emt 0:01:03]} g6 {[%emt 0:03:33]} 45. Bxg6 {[%emt 0:00:58]} Kxg6 {[%emt 0:00:19]} 46. Bxe5 {[%emt 0:00:08]} Kf5 {[%emt 0:00:18]} 47. Bc3 {[%emt 0:00:19]} a4 {[%emt 0:00:02]} 48. Bb2 {[%emt 0:00:07]} Ke4 {[%emt 0:00:36]} 49. Kg2 {[%emt 0:00:21]} Ke3 {[%emt 0:00:59]} 50. g4 {[%emt 0:00:26]} hxg4 {[%emt 0:00:45]} 51. Kg3 {[%emt 0:00:06]} Ke4 {[%emt 0:00:33]} 52. Kxg4 {[%emt 0:00:08]} Kd5 {[%emt 0:00:04]} 53. Kg5 {[%emt 0:00:22]} Ke6 {[%emt 0:00:01]} 54. Kg6 {[%emt 0:00:13]} Kd5 {[%emt 0:00:12]} 1-0

[Event "World Senior chT-65 2019"]
[Site "Rhodes"]
[Date "2019.04.18"]
[Round "3.34"]
[White "Carlsten, Peter"]
[Black "Bhend, Edwin"]
[Result "1/2-1/2"]
[ECO "B12"]
[WhiteElo "2002"]
[BlackElo "2120"]
[PlyCount "93"]
[EventDate "2019.04.16"]
[EventType "team-tourn"]
[EventCountry "GRE"]
[TimeControl "40/5400+30:1800+30"]

1. e4 {[%emt 0:00:00]} c6 {[%emt 0:00:00]} 2. d4 {[%emt 0:00:00]} d5 {[%emt 0:00:00]} 3. f3 {[%emt 0:00:00]} e6 {[%emt 0:00:00]} 4. Nc3 {[%emt 0:00:11]} f5 {[%emt 0:00:38]} 5. Be3 {[%emt 0:05:29]} Bb4 {[%emt 0:00:42]} 6. Nge2 {[%emt 0:04:39]} Nh6 {[%emt 0:02:14]} 7. a3 {[%emt 0:02:06]} Ba5 {[%emt 0:00:17]} 8. Qd2 {[%emt 0:02:36]} Nf7 {[%emt 0:00:21]} 9. e5 {[%emt 0:07:58]} Nd7 {[%emt 0:10:42]} 10. f4 {[%emt 0:01:45]} Qe7 {[%emt 0:09:04]} 11. Nc1 {[%emt 0:04:52]} a6 {[%emt 0:01:58]} 12. Be2 {[%emt 0:01:33]} O-O {[%emt 0:00:06]} 13. O-O {[%emt 0:00:24]} Nh6 {[%emt 0:00:48]} 14. Nxd5 {[%emt 0:01:25]} Qd8 {[%emt 0:01:34]} 15. Nc3 {[%emt 0:00:35]} b5 {[%emt 0:01:25]} 16. Bf3 {[%emt 0:01:31]} Bb7 {[%emt 0:00:34]} 17. Qf2 {[%emt 0:12:16]} Bxc3 {[%emt 0:00:53]} 18. bxc3 {[%emt 0:00:10]} Nb6 {[%emt 0:00:03]} 19. Nd3 {[%emt 0:02:03]} Ng4 {[%emt 0:03:25]} 20. Qe2 {[%emt 0:10:16]} Nd5 {[%emt 0:04:25]} 21. Bd2 {[%emt 0:01:26]} Nh6 {[%emt 0:00:55]} 22. Nc5 {[%emt 0:00:55]} Bc8 {[%emt 0:00:45]} 23. a4 {[%emt 0:05:42]} Nf7 {[%emt 0:02:06]} 24. Kh1 {[%emt 0:01:03]} g5 {[%emt 0:00:17]} 25. g3 {[%emt 0:02:03]} g4 {[%emt 0:01:25]} 26. Bg2 {[%emt 0:00:06]} h5 {[%emt 0:00:03]} 27. axb5 {[%emt 0:07:04]} cxb5 {[%emt 0:00:23]} 28. c4 {[%emt 0:00:32]} bxc4 {[%emt 0:00:34]} 29. Qxc4 {[%emt 0:00:41]} h4 {[%emt 0:01:55]} 30. Bxd5 {[%emt 0:01:02]} exd5 {[%emt 0:00:08]} 31. Qa4 {[%emt 0:01:19]} Qb6 {[%emt 0:02:59]} 32. Kg2 {[%emt 0:02:26]} Qh6 {[%emt 0:01:03]} 33. Rh1 {[%emt 0:00:21]} Ra7 {[%emt 0:03:01]} 34. Rab1 {[%emt 0:02:01]} Nh8 {[%emt 0:03:13]} 35. Qa5 {[%emt 0:03:10]} Ng6 {[%emt 0:10:38]} 36. Qb6 {[%emt 0:02:15]} Qg7 {[%emt 0:02:36]} 37. Qd6 {[%emt 0:00:57]} Qf7 {[%emt 0:06:55]} 38. Rb6 {[%emt 0:07:25]} Kh7 {[%emt 0:01:49]} 39. Ba5 {[%emt 0:02:56]} Qg7 {[%emt 0:05:38]} 40. Rb8 {[%emt 0:00:00]} Qh6 {[%emt 0:00:00]} 41. e6 {[%emt 0:14:10]} Re8 {[%emt 0:05:20]} 42. Bd8 {[%emt 0:03:44]} Bxe6 {[%emt 0:15:54]} 43. Bg5 {[%emt 0:06:39]} Qf8 {[%emt 0:00:12]} 44. Qb6 {[%emt 0:01:42]} Bf7 {[%emt 0:05:33]} 45. Re1 {[%emt 0:08:26]} Rxb8 {[%emt 0:05:52]} 46. Qxa7 {[%emt 0:00:06]} h3+ {[%emt 0:00:53]} 47. Kf1 {[%emt 0:00:27]} 1/2-1/2